fUST/lending_fUST_20251201
["ID","MTS","AMOUNT","RATE_DAILY","PERIOD"]
[395238932,1764562407157,-619.47,0.00010958,2]
[395238933,1764562407189,-500.0,0.00010958,2]
[395238934,1764562407398,-180.30293622,0.0001074,2]
[395238935,1764562407649,-4538.35453249,0.0001074,2]
[395238936,1764562407976,-974.31,0.00010958,2]
[395238937,1764562408006,-691.45,0.00010958,2]
[395238938,1764562408036,-500.0,0.00010958,2]
[395238939,1764562408066,-500.0,0.00010958,2]
[395238940,1764562408098,-506.53463433,0.00010958,2]
[395238941,1764562408136,-500.0,0.00010958,2]
[395238942,1764562408165,-503.54311399,0.00010958,2]
[395238943,1764562408195,-622.56,0.00010958,2]
[395238944,1764562408410,-304.28404901,0.00010958,2]
[395238945,1764562408431,-622.56,0.00010958,2]
[395238946,1764562408446,-403.21450336,0.00010958,2]
[395238948,1764562421404,-1170.84144763,0.00010958,2]
[395238949,1764562421431,-500.0,0.00010958,2]
[395238950,1764562421458,-500.0,0.00010958,2]
[395238951,1764562421485,-502.45532837,0.00010958,2]
[395238952,1764562421511,-500.0,0.00010958,2]
[395238953,1764562421538,-505.90401318,0.00010958,2]
[395238954,1764562421565,-656.42,0.00010958,2]
[395238955,1764562421592,-500.0,0.00010958,2]
[395238956,1764562421743,-328.76842164,0.00010958,2]
[395238957,1764562434648,-24.94480992,0.00010958,2]
[395238958,1764562434679,-577.8,0.00010958,2]
[395238959,1764562434709,-500.0,0.00010958,2]
[395238960,1764562434741,-880.04,0.00010958,2]
[395238961,1764562434773,-1076.61,0.00010958,2]
[395238962,1764562434806,-500.0,0.00010958,2]
[395238963,1764562434837,-571.13,0.00010958,2]
[395238964,1764562434870,-500.0,0.00010958,2]
[395238965,1764562435023,-738.96038016,0.00010958,2]
[395238966,1764562440812,-1186.45961984,0.00010958,2]
[395238967,1764562440840,-500.0,0.00010958,2]
[395238968,1764562440871,-809.83,0.00010958,2]
[395238969,1764562440898,-502.43540359,0.00010958,2]
[395238970,1764562440926,-500.0,0.00010958,2]
[395238971,1764562440954,-629.2,0.00010958,2]
[395238972,1764562440982,-374.43629975,0.00010958,2]
[395238973,1764562441010,-493.02735364,0.00010958,2]
[395238974,1764562441132,-9.23264636,0.00010958,2]
[395238975,1764562441163,-500.0,0.00010958,2]
[395238976,1764562441193,-1002.34607288,0.00010958,2]
[395238977,1764562441228,-719.83,0.00010958,2]
[395238978,1764562441259,-500.0,0.00010958,2]
[395238979,1764562441288,-601.73,0.00010958,2]
[395238980,1764562441317,-500.0,0.00010958,2]
[395238981,1764562441587,-9.23264636,0.00010958,2]
[395238982,1764562441601,-2333.73256152,0.00010958,2]
[395238983,1764562441643,-10000.01,0.00010958,2]
[395238984,1764562441682,-2606.34479212,0.00010958,2]
[395238985,1764562441709,-1602.66,0.00010958,2]
[395238986,1764562441738,-160.46395089,0.00010958,2]
[395238987,1764562441766,-151.0,0.00010958,2]
[395238988,1764562442006,-459.07251398,0.00010958,2]
[395238989,1764562442076,-40.92748602,0.00010958,2]
[395238990,1764562442085,-501.98327282,0.00010958,2]
[395238991,1764562442095,-587.98464149,0.00010958,2]
[395238992,1764562442104,-500.0,0.00010958,2]
[395238993,1764562442115,-826.3,0.00010958,2]
[395238994,1764562442124,-2563.27334268,0.00010958,2]
[395238995,1764562442140,-2606.34479212,0.00010958,2]
[395238996,1764562442159,-133.3018652,0.00010958,2]
[395238997,1764562442170,-651.76,0.00010958,2]
[395238998,1764562442180,-500.0,0.00010958,2]
[395238999,1764562442190,-317.5981348,0.00010958,2]
[395239000,1764562442227,-182.4018652,0.00010958,2]
[395239001,1764562442255,-760.64,0.00010958,2]
[395239002,1764562442283,-500.0,0.00010958,2]
[395239003,1764562442309,-1085.86,0.00010958,2]
[395239004,1764562442337,-795.53,0.00010958,2]
[395239005,1764562442368,-536.45,0.00010958,2]
[395239006,1764562442397,-500.0,0.00010958,2]
[395239007,1764562442424,-500.0,0.00010958,2]
[395239008,1764562442585,-500.0,0.00010958,2]
[395239009,1764562442613,-502.52389397,0.00010958,2]
[395239010,1764562442641,-669.9,0.00010958,2]
[395239011,1764562442667,-500.0,0.00010958,2]
[395239012,1764562442695,-2733.24,0.00010958,2]
[395239013,1764562442903,-500.0,0.00010958,2]
[395239014,1764562442931,-1317.94,0.00010958,2]
[395239015,1764562442958,-1377.94,0.00010958,2]
[395239016,1764562442985,-500.0,0.00010958,2]
[395239017,1764562443012,-500.0,0.00010958,2]
[395239018,1764562443039,-500.0,0.00010958,2]
[395239019,1764562443389,-300.0,0.00010957,2]
[395239020,1764562443398,-95.45034686,0.00010958,2]
[395239021,1764562443411,-500.0,0.00010958,2]
[395239022,1764562443425,-424.06965314,0.00010958,2]
[395239023,1764562443434,-75.93034686,0.00010958,2]
[395239024,1764562443454,-424.06965314,0.00010958,2]
[395239025,1764562443463,-184.18034686,0.00010958,2]
[395239026,1764562450175,-315.81965314,0.00010958,2]
[395239027,1764562450203,-500.0,0.00010958,2]
[395239028,1764562450231,-502.2161594,0.00010958,2]
[395239029,1764562450260,-961.21,0.00010958,2]
[395239030,1764562450288,-500.0,0.00010958,2]
[395239031,1764562450317,-702.33,0.00010958,2]
[395239032,1764562450344,-699.11,0.00010958,2]
[395239033,1764562450373,-607.67,0.00010958,2]
[395239034,1764562450534,-423.29837492,0.00010958,2]
[395239035,1764562470191,-10000.01,0.00010848,2]
[395239036,1764562470356,-2864.28373565,0.00010848,2]
[395239037,1764562470379,-4271.4425287,0.00010848,2]
[395239038,1764562470527,-76.70162508,0.00010958,2]
[395239039,1764562470558,-1274.6,0.00010958,2]
[395239040,1764562470588,-500.0,0.00010958,2]
[395239041,1764562470619,-581.53,0.00010958,2]
[395239042,1764562470651,-500.74003871,0.00010958,2]
[395239043,1764562470685,-718.95,0.00010958,2]
[395239044,1764562470713,-503.92302995,0.00010958,2]
[395239045,1764562470859,-1687.12061252,0.00010958,2]
[395239046,1764562470873,-10000.01,0.00010958,2]
[395239047,1764562470913,-2603.13938748,0.00010958,2]
[395239048,1764562470941,-500.0,0.00010958,2]
[395239049,1764562470969,-500.0,0.00010958,2]
[395239050,1764562470996,-552.75234098,0.00010958,2]
[395239051,1764562471175,-1688.22654308,0.00010958,2]
[395239052,1764562486183,-971.98345692,0.00010958,2]
[395239053,1764562486211,-500.89525868,0.00010958,2]
[395239054,1764562486242,-1222.21,0.00010958,2]
[395239055,1764562486269,-1741.22,0.00010958,2]
[395239056,1764562486298,-544.87816012,0.00010958,2]
[395239057,1764562486660,-37.63624856,0.00010958,2]
[395239058,1764562486733,-551.05375144,0.00010958,2]
[395239059,1764562486761,-500.0,0.00010958,2]
[395239060,1764562486789,-3024.85249712,0.00010958,2]
[395239061,1764562486850,-1848.19750288,0.00010958,2]
[395239062,1764562505792,-300.0,0.00010957,2]
[395239063,1764562505822,-300.0,0.00010957,2]
[395239064,1764562505850,-619.06,0.00010958,2]
[395239065,1764562505878,-1402.33,0.00010958,2]
[395239066,1764562505907,-500.0,0.00010958,2]
[395239067,1764562505937,-1314.57,0.00010958,2]
[395239068,1764562505966,-500.0,0.00010958,2]
[395239069,1764562505985,-300.0,0.00010958,2]
[395239070,1764562506001,-300.0,0.00010958,2]
[395239071,1764562506012,-619.06,0.00010958,2]
[395239072,1764562506026,-1402.33,0.00010958,2]
[395239073,1764562506046,-454.44,0.00010958,2]
[395239074,1764562506055,-45.56,0.00010958,2]
[395239075,1764562506087,-454.44,0.00010958,2]
[395239076,1764562506116,-500.0,0.00010958,2]
[395239077,1764562506146,-500.73692049,0.00010958,2]
[395239078,1764562506183,-500.0,0.00010958,2]
[395239079,1764562506212,-500.0,0.00010958,2]
[395239080,1764562506241,-926.39,0.00010958,2]
[395239081,1764562506270,-793.70615902,0.00010958,2]
[395239082,1764562506282,-1314.57,0.00010958,2]
[395239083,1764562506293,-334.89384098,0.00010958,2]
[395239084,1764562506302,-165.10615902,0.00010958,2]
[395239085,1764562506318,-128.09,0.00010958,2]
[395239086,1764562506353,-206.80384098,0.00010958,2]
[395239087,1764562506380,-500.0,0.00010958,2]
[395239088,1764562506407,-500.0,0.00010958,2]
[395239089,1764562506435,-500.0,0.00010958,2]
[395239090,1764562506462,-574.04,0.00010958,2]
[395239091,1764562506488,-2534.04,0.00010958,2]
[395239092,1764562506507,-454.44,0.00010958,2]
[395239093,1764562506517,-500.0,0.00010958,2]
[395239094,1764562506532,-500.73692049,0.00010958,2]
[395239095,1764562506547,-434.96307951,0.00010958,2]
[395239096,1764562506556,-65.03692049,0.00010958,2]
[395239097,1764562506567,-434.96307951,0.00010958,2]
[395239098,1764562506576,-65.03692049,0.00010958,2]
[395239099,1764562506613,-1680.70307951,0.00010958,2]
[395239100,1764562506641,-597.43,0.00010958,2]
[395239101,1764562506670,-500.0,0.00010958,2]
[395239102,1764562506698,-500.0,0.00010958,2]
[395239103,1764562506728,-500.0,0.00010958,2]
[395239104,1764562506759,-535.92,0.00010958,2]
[395239105,1764562506778,-926.39,0.00010958,2]
[395239106,1764562506789,-690.61,0.00010958,2]
[395239107,1764562506798,-500.0,0.00010958,2]
[395239108,1764562506807,-828.8,0.00010958,2]
[395239109,1764562506818,-423.76,0.00010958,2]
[395239110,1764562506837,-76.24,0.00010958,2]
[395239111,1764562506846,-130.56384098,0.00010958,2]
[395239112,1764562506866,-400.70615902,0.00010958,2]
[395239113,1764562506875,-99.29384098,0.00010958,2]
[395239114,1764562506920,-400.70615902,0.00010958,2]
[395239115,1764562506950,-500.0,0.00010958,2]
[395239116,1764562506978,-675.94,0.00010958,2]
[395239117,1764562507005,-957.95,0.00010958,2]
[395239118,1764562507032,-949.68,0.00010958,2]
[395239119,1764562507058,-500.0,0.00010958,2]
[395239120,1764562507086,-271.16851832,0.00010958,2]
[395239121,1764562507114,-474.0,0.00010958,2]
[395239122,1764562507139,-500.0,0.00010958,2]
[395239123,1764562507156,-500.0,0.00010958,2]
[395239124,1764562507173,-574.04,0.00010958,2]
[395239125,1764562507190,-313.56,0.00010958,2]
[395239126,1764562507200,-500.0,0.00010958,2]
[395239127,1764562507209,-502.53643047,0.00010958,2]
[395239128,1764562507219,-500.0,0.00010958,2]
[395239129,1764562507228,-717.94356953,0.00010958,2]
[395239130,1764562507250,-370.24231804,0.00010958,2]
[395239131,1764562507287,-294.51411243,0.00010958,2]
[395239132,1764562507315,-500.0,0.00010958,2]
[395239133,1764562507343,-1215.89,0.00010958,2]
[395239134,1764562507371,-2130.03,0.00010958,2]
[395239135,1764562507399,-151.0,0.00010958,2]
[395239136,1764562507427,-26.81177514,0.00010958,2]
[395239137,1764562507440,-1363.51822486,0.00010958,2]
[395239138,1764562507449,-317.18485465,0.00010958,2]
[395239139,1764562507467,-597.43,0.00010958,2]
[395239140,1764562507478,-500.0,0.00010958,2]
[395239141,1764562507495,-500.0,0.00010958,2]
[395239142,1764562507506,-500.0,0.00010958,2]
[395239143,1764562507524,-535.92,0.00010958,2]
[395239144,1764562507536,-1371.90384098,0.00010958,2]
[395239145,1764562507567,-680.00130437,0.00010958,2]
[395239146,1764562507597,-2875.76,0.00010958,2]
[395239147,1764562507625,-500.0,0.00010958,2]
[395239148,1764562507653,-244.55119909,0.00010958,2]
[395239149,1764562507682,-488.09499308,0.00010958,2]
[395239150,1764562507699,-400.70615902,0.00010958,2]
[395239151,1764562507911,-22.4888479,0.00010958,2]
[395239152,1764562507925,-477.5111521,0.00010958,2]
[395239153,1764562507937,-389.4488479,0.00010958,2]
[395239154,1764562507948,-286.4911521,0.00010958,2]
[395239155,1764562507961,-563.9288479,0.00010958,2]
[395239156,1764562507972,-394.0211521,0.00010958,2]
[395239157,1764562507986,-949.68,0.00010958,2]
[395239158,1764562508003,-500.0,0.00010958,2]
[395239159,1764562508021,-271.16851832,0.00010958,2]
[395239160,1764562508038,-474.0,0.00010958,2]
[395239161,1764562508050,-541.12064532,0.00010958,2]
[395239162,1764562508062,-91.71968426,0.00010958,2]
[395239163,1764562508072,-202.79442817,0.00010958,2]
[395239164,1764562508105,-297.20557183,0.00010958,2]
[395239165,1764562508115,-202.79442817,0.00010958,2]
[395239166,1764562508189,-297.20557183,0.00010958,2]
[395239167,1764562508200,-500.0,0.00010958,2]
[395239168,1764562508210,-373.58142694,0.00010958,2]
[395239169,1764562508220,-45.10300123,0.00010958,2]
[395239170,1764562508254,-862.93699877,0.00010958,2]
[395239171,1764562508264,-859.85,0.00010958,2]
[395239172,1764562508274,-407.24300123,0.00010958,2]
[395239173,1764562508293,-148.28699877,0.00010958,2]
[395239174,1764562508303,-2.71300123,0.00010958,2]
[395239175,1764562508315,-789.53699877,0.00010958,2]
[395239176,1764562508325,-600.79300123,0.00010958,2]
[395239177,1764562508355,-72.10699877,0.00010958,2]
[395239178,1764562508365,-607.8943056,0.00010958,2]
[395239179,1764562508376,-2231.2656944,0.00010958,2]
[395239180,1764562508386,-644.4943056,0.00010958,2]
[395239181,1764562508442,-500.0,0.00010958,2]
[395239182,1764562508464,-244.55119909,0.00010958,2]
[395239183,1764562508475,-518.92449531,0.00010958,2]
[395239184,1764562508485,-392.36550469,0.00010958,2]
[395239185,1764562519800,-291.0,0.00010957,2]
[395239186,1764562519829,-300.82449531,0.00010958,2]
[395239187,1764562519858,-500.0,0.00010958,2]
[395239188,1764562519887,-500.0,0.00010958,2]
[395239189,1764562519915,-552.38,0.00010958,2]
[395239190,1764562519943,-2422.35,0.00010958,2]
[395239191,1764562519972,-366.90100938,0.00010958,2]
[395239192,1764562519985,-133.09899062,0.00010958,2]
[395239193,1764562519995,-157.90100938,0.00010958,2]
[395239194,1764562520048,-300.82449531,0.00010958,2]
[395239195,1764562520075,-500.0,0.00010958,2]
[395239196,1764562520086,-500.0,0.00010958,2]
[395239197,1764562520097,-255.55449531,0.00010958,2]
[395239198,1764562520106,-296.82550469,0.00010958,2]
[395239199,1764562520118,-1453.73449531,0.00010958,2]
[395239200,1764562520127,-689.82,0.00010958,2]
[395239201,1764562520136,-278.79550469,0.00010958,2]
[395239202,1764562520148,-221.20449531,0.00010958,2]
[395239203,1764562520160,-278.79550469,0.00010958,2]
[395239205,1764562551593,-914.44449531,0.00010958,2]
[395239206,1764562551622,-546.17,0.00010958,2]
[395239207,1764562551651,-500.0,0.00010958,2]
[395239208,1764562551680,-500.0,0.00010958,2]
[395239209,1764562551707,-502.28975666,0.00010958,2]
[395239210,1764562551737,-500.0,0.00010958,2]
[395239211,1764562551768,-551.07,0.00010958,2]
[395239212,1764562551786,-914.44449531,0.00010958,2]
[395239213,1764562551807,-546.17,0.00010958,2]
[395239214,1764562551830,-500.0,0.00010958,2]
[395239215,1764562551844,-500.0,0.00010958,2]
[395239216,1764562552366,-502.28975666,0.00010958,2]
[395239217,1764562552411,-340.13574803,0.00010958,2]
[395239218,1764562552420,-151.0,0.00010958,2]
[395239219,1764562552430,-8.86425197,0.00010958,2]
[395239220,1764562552442,-551.07,0.00010958,2]
[395239221,1764562552465,-555.68574803,0.00010958,2]
[395239222,1764562552475,-151.0,0.00010958,2]
[395239223,1764562552484,-643.89,0.00010958,2]
[395239224,1764562552492,-621.48574803,0.00010958,2]
[395239225,1764562552548,-1609.96425197,0.00010958,2]
[395239226,1764562552577,-151.0,0.00010958,2]
[395239227,1764562552603,-1991.94,0.00010958,2]
[395239228,1764562552632,-500.0,0.00010958,2]
[395239229,1764562552661,-500.0,0.00010958,2]
[395239230,1764562552735,-500.0,0.00010958,2]
[395239231,1764562552764,-500.0,0.00010958,2]
[395239232,1764562552792,-2945.1,0.00010958,2]
[395239233,1764562552820,-504.35603459,0.00010958,2]
[395239234,1764562552849,-438.45793082,0.00010958,2]
[395239235,1764562552918,-224.18206918,0.00010958,2]
[395239236,1764562552947,-3336.97586164,0.00010958,2]
[395239237,1764562552979,-1609.96425197,0.00010958,2]
[395239238,1764562552995,-151.0,0.00010958,2]
[395239239,1764562553007,-1116.72988639,0.00010958,2]
[395239240,1764562553018,-505.51562318,0.00010958,2]
[395239241,1764562553028,-369.69449043,0.00010958,2]
[395239242,1764562553067,-130.30550957,0.00010958,2]
[395239243,1764562553098,-286.35869996,0.00010958,2]
[395239244,1764562553128,-933.72,0.00010958,2]
[395239245,1764562553163,-501.51102239,0.00010958,2]
[395239246,1764562553194,-670.43,0.00010958,2]
[395239247,1764562553226,-500.0,0.00010958,2]
[395239248,1764562553246,-500.0,0.00010958,2]
[395239249,1764562553262,-500.0,0.00010958,2]
[395239250,1764562553280,-494.20149606,0.00010958,2]
[395239251,1764562553292,-500.0,0.00010958,2]
[395239252,1764562553303,-500.0,0.00010958,2]
[395239253,1764562553328,-2739.66850394,0.00010958,2]
[395239254,1764562553338,-205.43149606,0.00010958,2]
[395239255,1764562553350,-294.56850394,0.00010958,2]
[395239256,1764562553360,-209.78753065,0.00010958,2]
[395239257,1764562553376,-290.21246935,0.00010958,2]
[395239258,1764562553386,-372.42753065,0.00010958,2]
[395239259,1764562553420,-881.04246935,0.00010958,2]
[395239260,1764562553449,-659.77,0.00010958,2]
[395239261,1764562553480,-1469.3,0.00010958,2]
[395239262,1764562553510,-500.0,0.00010958,2]
[395239263,1764562553541,-500.0,0.00010958,2]
[395239264,1764562553577,-224.18206918,0.00010958,2]
[395239265,1764562553589,-3385.75793082,0.00010958,2]
[395239266,1764562553598,-500.0,0.00010958,2]
[395239267,1764562553608,-500.0,0.00010958,2]
[395239268,1764562553618,-500.0,0.00010958,2]
[395239269,1764562553627,-924.15,0.00010958,2]
[395239270,1764562553637,-404.76206918,0.00010958,2]
[395239271,1764562553677,-95.23793082,0.00010958,2]
[395239272,1764562553708,-1031.75,0.00010958,2]
[395239273,1764562553738,-500.0,0.00010958,2]
[395239274,1764562553768,-534.4,0.00010958,2]
[395239275,1764562553797,-793.99,0.00010958,2]
[395239276,1764562553826,-500.0,0.00010958,2]
[395239277,1764562553858,-500.0,0.00010958,2]
[395239278,1764562553888,-602.98,0.00010958,2]
[395239279,1764562553915,-130.30550957,0.00010958,2]
[395239280,1764562553932,-286.35869996,0.00010958,2]
[395239281,1764562553949,-933.72,0.00010958,2]
[395239282,1764562553973,-501.51102239,0.00010958,2]
[395239283,1764562554009,-613.95476808,0.00010958,2]
[395239284,1764562554040,-1224.4,0.00010958,2]
[395239285,1764562554071,-500.0,0.00010958,2]
[395239286,1764562554112,-670.43,0.00010958,2]
[395239287,1764562554154,-500.0,0.00010958,2]
[395239288,1764562554169,-3955.35953616,0.00010958,2]
[395239289,1764562554217,-881.04246935,0.00010958,2]
[395239290,1764562554228,-659.77,0.00010958,2]
[395239291,1764562554239,-1469.3,0.00010958,2]
[395239292,1764562554251,-500.0,0.00010958,2]
[395239293,1764562554268,-500.0,0.00010958,2]
[395239294,1764562554278,-1979.7850613,0.00010958,2]
[395239295,1764562554317,-95.23793082,0.00010958,2]
[395239296,1764562554329,-1031.75,0.00010958,2]
[395239297,1764562554340,-500.0,0.00010958,2]
[395239298,1764562554353,-534.4,0.00010958,2]
[395239299,1764562554364,-793.99,0.00010958,2]
[395239300,1764562554376,-255.36500237,0.00010958,2]
[395239301,1764562554385,-244.63499763,0.00010958,2]
[395239302,1764562554403,-500.0,0.00010958,2]
[395239303,1764562554421,-602.98,0.00010958,2]
[395239304,1764562554449,-883.29413836,0.00010958,2]
[395239305,1764562554461,-284.18086401,0.00010958,2]
[395239306,1764562554471,-329.77390407,0.00010958,2]
[395239307,1764562554482,-170.22609593,0.00010958,2]
[395239308,1764562554491,-500.0,0.00010958,2]
[395239309,1764562554500,-500.0,0.00010958,2]
[395239310,1764562554510,-54.17390407,0.00010958,2]
[395239311,1764562554521,-500.0,0.00010958,2]
[395239312,1764562554538,-659.02609593,0.00010958,2]
[395239313,1764562554547,-500.0,0.00010958,2]
[395239314,1764562554556,-4164.27436791,0.00010958,2]
[395239315,1764562558875,-1179.65563209,0.00010958,2]
[395239316,1764562558903,-500.0,0.00010958,2]
[395239317,1764562559115,-2729.73,0.00010958,2]
[395239318,1764562559145,-379.73873582,0.00010958,2]
[395239319,1764562559158,-421.76126418,0.00010958,2]
[395239320,1764562559172,-500.0,0.00010958,2]
[395239321,1764562559182,-257.89436791,0.00010958,2]
[395239322,1764562559193,-242.10563209,0.00010958,2]
[395239323,1764562559204,-257.89436791,0.00010958,2]
[395239324,1764562559219,-628.95563209,0.00010958,2]
[395239325,1764562559229,-687.74,0.00010958,2]
[395239326,1764562559238,-541.01,0.00010958,2]
[395239327,1764562559248,-610.97,0.00010958,2]
[395239328,1764562559258,-261.05436791,0.00010958,2]
[395239329,1764562559291,-801.5,0.00010958,2]
[395239331,1764562586888,-500.0,0.00010847,2]
[395239332,1764562586921,-500.0,0.00010847,2]
[395239333,1764562586953,-168.58902461,0.00010847,2]
[395239334,1764562586987,-500.0,0.00010847,2]
[395239335,1764562587018,-500.0,0.00010847,2]
[395239336,1764562587049,-340.33109511,0.00010847,2]
[395239337,1764562587079,-300.0,0.00010957,2]
[395239338,1764562587108,-584.82563209,0.00010958,2]
[395239339,1764562587139,-644.4,0.00010958,2]
[395239340,1764562587170,-598.29849638,0.00010958,2]
[395239341,1764562587186,-500.0,0.00010958,2]
[395239342,1764562587198,-227.12150362,0.00010958,2]
[395239343,1764562587208,-272.87849638,0.00010958,2]
[395239344,1764562587429,-168.58902461,0.00010958,2]
[395239345,1764562587448,-500.0,0.00010958,2]
[395239346,1764562587460,-500.0,0.00010958,2]
[395239347,1764562587483,-22.70247901,0.00010958,2]
[395239348,1764562587492,-317.6286161,0.00010958,2]
[395239349,1764562587525,-182.3713839,0.00010958,2]
[395239350,1764562587554,-500.0,0.00010958,2]
[395239351,1764562587583,-725.04,0.00010958,2]
[395239352,1764562587612,-500.0,0.00010958,2]
[395239353,1764562587641,-750.77,0.00010958,2]
[395239354,1764562587669,-500.0,0.00010958,2]
[395239355,1764562587699,-583.49,0.00010958,2]
[395239356,1764562587736,-500.0,0.00010958,2]
[395239357,1764562587767,-646.2,0.00010958,2]
[395239358,1764562587792,-300.0,0.00010958,2]
[395239359,1764562587809,-200.0,0.00010958,2]
[395239360,1764562587819,-384.82563209,0.00010958,2]
[395239361,1764562587830,-644.4,0.00010958,2]
[395239362,1764562587841,-356.53436791,0.00010958,2]
[395239363,1764562587852,-503.60097941,0.00010958,2]
[395239364,1764562587861,-465.28465268,0.00010958,2]
[395239365,1764562587891,-366.91534732,0.00010958,2]
[395239366,1764562587920,-500.0,0.00010958,2]
[395239367,1764562587949,-500.0,0.00010958,2]
[395239368,1764562588010,-182.3713839,0.00010958,2]
[395239369,1764562588083,-500.0,0.00010958,2]
[395239370,1764562588127,-725.04,0.00010958,2]
[395239371,1764562588139,-500.0,0.00010958,2]
[395239372,1764562588174,-750.77,0.00010958,2]
[395239373,1764562588198,-500.0,0.00010958,2]
[395239374,1764562588223,-583.49,0.00010958,2]
[395239375,1764562588248,-500.0,0.00010958,2]
[395239376,1764562588285,-646.2,0.00010958,2]
[395239377,1764562588314,-224.2672322,0.00010958,2]
[395239378,1764562588331,-366.91534732,0.00010958,2]
[395239379,1764562588347,-500.0,0.00010958,2]
[395239380,1764562588358,-500.0,0.00010958,2]
[395239381,1764562588375,-7215.78603658,0.00010958,2]
[395239382,1764562588384,-50.39326878,0.00010958,2]
[395239383,1764562588395,-449.60673122,0.00010958,2]
[395239384,1764562588405,-500.0,0.00010958,2]
[395239385,1764562588415,-1221.49,0.00010958,2]
[395239386,1764562588424,-489.79972163,0.00010958,2]
[395239387,1764562588434,-1229.09,0.00010958,2]
[395239388,1764562588443,-592.48,0.00010958,2]
[395239389,1764562588453,-658.2,0.00010958,2]
[395239390,1764562588463,-500.0,0.00010958,2]
[395239391,1764562588472,-1118.09,0.00010958,2]
[395239392,1764562588481,-621.5,0.00010958,2]
[395239393,1764562588490,-500.0,0.00010958,2]
[395239394,1764562588498,-500.0,0.00010958,2]
[395239395,1764562588508,-1619.75354715,0.00010958,2]
[395239396,1764562588535,-787.33645285,0.00010958,2]
[395239397,1764562588544,-3088.43,0.00010958,2]
[395239398,1764562588553,-500.0,0.00010958,2]
[395239399,1764562588562,-500.0,0.00010958,2]
[395239400,1764562588571,-4741.32,0.00010958,2]
[395239401,1764562588581,-382.92354715,0.00010958,2]
[395239408,1764562751142,1514.52537514,0.000215,120]
[395239409,1764562818271,300.0,0.0001401,9]
[395239419,1764563149939,9120.83,0.0002,30]
[395239420,1764563167626,4560.41,0.00014,10]
[395239421,1764563183498,4560.41,7.3e-05,2]
[395239422,1764563210922,10000.0,0.000215,120]
[395239423,1764563221410,10000.0,0.0001,90]
[395239424,1764563229634,10000.0,0.0001,60]
[395239425,1764563238726,10000.0,0.0002,30]
[395239426,1764563251612,10000.0,0.0001,60]
[395239428,1764563270669,10000.0,0.000215,120]
[395239429,1764563289937,10000.0,0.0001,90]
[395239430,1764563297207,10000.0,0.0001,60]
[395239431,1764563304676,10000.0,0.0002,30]
[395239435,1764563328005,10000.0,0.000215,120]
[395239436,1764563335431,10000.0,0.0001,90]
[395239437,1764563342300,10000.0,0.0001,60]
[395239438,1764563350747,10000.0,0.0002,30]
[395239439,1764563361703,10000.0,0.000215,120]
[395239440,1764563363877,-239.0,0.00010847,2]
[395239441,1764563363903,-167.79605032,0.00010874,2]
[395239442,1764563363928,-353.71323156,0.00010953,2]
[395239443,1764563363953,-300.0,0.00010956,2]
[395239444,1764563363978,-300.0,0.00010956,2]
[395239445,1764563364003,-300.0,0.00010957,2]
[395239446,1764563364029,-1200.0,0.00010957,2]
[395239447,1764563364056,-300.0,0.00010957,2]
[395239448,1764563364082,-185.39878051,0.00010957,2]
[395239449,1764563364106,-553.32,0.00010958,2]
[395239450,1764563364132,-500.0,0.00010958,2]
[395239451,1764563364157,-500.0,0.00010958,2]
[395239452,1764563364183,-810.74,0.00010958,2]
[395239453,1764563364207,-521.15,0.00010958,2]